Cogmind - Beta 10.1 @@@ ROGUE MODE // 2020.10.16 @ 00:09:35 Player: Andru7428 Result: Self-destructed Performance ------------- Evolutions (2) 1000 Regions Visited (7) 1400 Robots Destroyed (62) 310 Value Destroyed (1538) 1538 Prototype IDs (25) 500 Alien Tech Used (0) 0 Bonus (310) 310 TOTAL SCORE: 5058 Bonus ------- Follower Combat Kills 179 Aligned with FarCom 300 Friendly Fire -169 Cogmind --------- Core Integrity 550/550 Matter 170/300 Energy 280/280 System Corruption 0% Temperature Cool (0) Movement Treading (160) Location -8/Materials Parts ------- > --- POWER (1) -------- Heavy Ion Engine > --- PROPULSION (3) --- Light Treads Light Treads Light Treads > --- UTILITY (4) ------ Improved Heat Sink Large Storage Unit Large Storage Unit > --- WEAPON (3) ------- EM Pulse Cannon Shotgun Shotgun > --- INVENTORY (16) --- Improved Ion Engine Light Treads Light Treads Carbon-fiber Leg Carbon-fiber Leg Large Storage Unit Improved Sensor Array Supersonic Drone Bay (0/1) EM Pulse Cannon EM Pulse Cannon Heavy Assault Rifle Heavy Assault Rifle Rocket Launcher Mini Grenade Launcher Heavy Hammer Peak State ------------ > --- POWER ------------ Heavy Ion Engine > --- PROPULSION ------- Light Treads Light Treads Light Treads > --- UTILITY ---------- Improved Heat Sink Large Storage Unit Large Storage Unit Supersonic Drone Bay > --- WEAPON ----------- EM Pulse Cannon Shotgun Shotgun > --- INVENTORY -------- Improved Ion Engine Light Treads Light Treads Carbon-fiber Leg Carbon-fiber Leg Large Storage Unit Improved Sensor Array EM Pulse Cannon EM Pulse Cannon Heavy Assault Rifle Heavy Assault Rifle Rocket Launcher Mini Grenade Launcher Heavy Hammer [Rating: 28] Favorites ----------- Power Heavy Ion Engine Engine Heavy Ion Engine Power Core Light Nuclear Core Propulsion Light Treads Treads Light Treads Leg Aluminum Leg Utility Large Storage Unit Device Improved Heat Sink Storage Large Storage Unit Protection Light Armor Plating Weapon Shotgun Energy Gun Improved Medium Laser Energy Cannon EM Pulse Cannon Ballistic Gun Shotgun Ballistic Cannon Light Cannon Launcher Rocket Launcher Build | -11 -10 -10 -9 -9 -9 -8 -8 ------- Run | Scr Mat Min Mat Min Exi Min Mat Slots Evolved 4 | . . . 2 . . . 2 Power . | . . . . . . . . Propulsion 1 | . . . . . . . 1 Utility 2 | . . . 1 . . . 1 Weapon 1 | . . . 1 . . . . Parts Attached 61 | 6 6 4 23 7 4 9 2 Power 5 | 1 3 . 1 . . . . Engine 4 | 1 2 . 1 . . . . Core 1 | . 1 . . . . . . Reactor . | . . . . . . . . Propulsion 13 | 2 2 1 7 . . . 1 Treads 5 | 2 . . 2 . . . 1 Leg 8 | . 2 1 5 . . . . Wheel . | . . . . . . . . Hover . | . . . . . . . . Flight . | . . . . . . . . Utility 15 | 1 1 1 5 . 4 2 1 Device 9 | . . . 2 . 4 2 1 Storage 5 | 1 1 1 2 . . . . Processor . | . . . . . . . . Hackware . | . . . . . . . . Protection 1 | . . . 1 . . . . Artifact . | . . . . . . . . Weapon 28 | 2 . 2 10 7 . 7 . Energy Gun 1 | . . . 1 . . . . Energy Cannon 9 | . . . 2 3 . 4 . Ballistic Gun 9 | 2 . 1 5 1 . . . Ballistic Cannon 1 | . . . 1 . . . . Launcher 8 | . . 1 1 3 . 3 . Special Weapon . | . . . . . . . . Impact Weapon . | . . . . . . . . Slashing Weapon . | . . . . . . . . Piercing Weapon . | . . . . . . . . Special Melee Weapon . | . . . . . . . . Unidentified Prototypes 2 | . . . 2 . . . . Parts Lost 4 | . 2 . 1 . . 1 . Power 1 | . 1 . . . . . . Propulsion 1 | . 1 . . . . . . Utility . | . . . . . . . . Weapon 2 | . . . 1 . . 1 . Highest Loss Streak 1 | . 1 . 1 . . 1 . Average Slot Usage (%) 98 | . 90 100 99 100 99 100 100 Engine 7 | . 7 . 3 11 11 11 9 Core 4 | . 6 14 7 . . . . Treads 14 | . 16 . 4 22 22 22 27 Leg 9 | . 11 28 17 . . . . Device 6 | . . . 5 11 10 11 18 Storage 22 | . 18 28 22 22 22 22 18 Energy Cannon 6 | . . . 5 10 11 10 9 Ballistic Gun 24 | . 28 27 24 22 22 22 18 Naked Turns . | . . . . . . . . Heaviest Build 59 | 11 45 57 59 53 53 53 53 Greatest Support 60 | 40 40 20 40 40 40 40 60 Greatest Overweight (x) 2 | . 2 2 2 1 1 1 . Average Overweight (x) 1 | . . 2 1 1 1 1 . Largest Inventory Capacity 18 | 6 14 18 18 16 16 16 16 Average Capacity 14 | 5 8 14 16 16 16 16 16 Most Carried 16 | 4 6 9 16 16 16 16 15 Average Carried 12 | 3 5 7 14 15 16 15 14 Final Capacity 18 | 6 14 18 16 16 16 16 16 Final Carried 16 | 4 5 9 16 16 16 16 15 Class Distribution -------------------- 47% | Gunner 30% | Mutant 11% | Skirmisher 5% | Tank Dominant Class ---------------- Mutant | -10/Materials Mutant | -10/Mines Gunner | -9/Materials Gunner | -9/Mines Gunner | -9/Exiles Skirmisher | -8/Mines Skirmisher | -8/Materials Resources | -11 -10 -10 -9 -9 -9 -8 -8 ----------- Run | Scr Mat Min Mat Min Exi Min Mat Matter Collected 1720 | 213 481 144 557 221 . 104 . Remotely . | . . . . . . . . Salvage Created 1855 | . 787 163 498 313 . 94 . Parts 111 | . 37 11 30 25 . 8 . Haulers Intercepted 3 | . 1 . 2 . . . . Recyclers Shooed 1 | . . . . 1 . . . Parts Field Recycled . | . . . . . . . . Retrieved Matter . | . . . . . . . . Parts Self-Destructed . | . . . . . . . . Prevented . | . . . . . . . . Kills | -11 -10 -10 -9 -9 -9 -8 -8 ------- Run | Scr Mat Min Mat Min Exi Min Mat Combat Hostiles Destroyed 54 | . 17 5 14 12 . 6 . Guns 30 | . 17 2 8 2 . 1 . Cannons 5 | . . . 3 1 . 1 . AOE 19 | . . 3 3 9 . 4 . Classes Destroyed 8 | . 4 . 1 2 . 1 . Tunneler 2 | . . . . 2 . . . Hauler 3 | . 1 . 2 . . . . Recycler 2 | . 1 1 . . . . . Swarmer 20 | . 3 3 7 3 . 4 . Grunt 28 | . 14 2 5 7 . . . Duelist 2 | . . . . 2 . . . Sentry 3 | . . . 3 . . . . Hunter 2 | . . . . . . 2 . Best Kill Streak 5 | . 5 3 5 5 . 4 . Combat Bots Only 5 | . 5 3 5 3 . 4 . Max Kills in Single Turn 4 | . 2 2 4 4 . 2 . Gunslinging . | . . . . . . . . Exploded 3 | . . 2 3 3 . 2 . Melee . | . . . . . . . . Uniques/NPCs Destroyed . | . . . . . . . . Combat | -11 -10 -10 -9 -9 -9 -8 -8 -------- Run | Scr Mat Min Mat Min Exi Min Mat Damage Taken 1862 | . 653 123 522 279 . 285 . Core 368 | . 173 42 87 20 . 46 . Absorbed by Shields . | . . . . . . . . Core Remaining (%) 58 | 100 . 14 . . . 61 . Volleys Fired 146 | . 64 15 42 15 . 10 . Largest 3 | . 2 2 3 3 . 3 . Hottest 109 | . 40 50 109 109 . 109 . Shots Fired 345 | . 128 30 124 39 . 24 . Gun 293 | . 128 28 99 24 . 14 . Cannon 41 | . . . 24 10 . 7 . Launcher 11 | . . 2 1 5 . 3 . Special . | . . . . . . . . Kinetic 300 | . 128 28 106 24 . 14 . Thermal 10 | . . . 10 . . . . Explosive 11 | . . 2 1 5 . 3 . Electromagnetic 24 | . . . 7 10 . 7 . Robot Hit Streak 13 | . 10 13 10 6 . 8 . Robot Miss Streak 7 | . 3 3 7 4 . 2 . Penetration Max . | . . . . . . . . Secondary Targets 3 | . 3 . . . . . . Max Gunslinging Chain 1 | . 1 . . . . . . Shots Hit Robots 224 | . 90 15 77 25 . 17 . Core Hits 111 | . 34 13 28 23 . 13 . Critical Hits 1 | . 1 . . . . . . Critical Kills . | . . . . . . . . Critical Parts Destroyed 1 | . 1 . . . . . . Melee Attacks . | . . . . . . . . Impact . | . . . . . . . . Slashing . | . . . . . . . . Piercing . | . . . . . . . . Sneak Attacks . | . . . . . . . . Combat Hostiles . | . . . . . . . . Follow-up Attacks . | . . . . . . . . Damage Inflicted 4018 | . 1090 329 1096 1045 . 458 . Guns 2406 | . 1090 246 718 219 . 133 . Cannons 286 | . . . 156 53 . 77 . Explosions 1326 | . . 83 222 773 . 248 . Melee . | . . . . . . . . Ramming . | . . . . . . . . Kinetic 2430 | . 1090 246 742 219 . 133 . Thermal 121 | . . . 66 55 . . . Explosive 1271 | . . 83 222 718 . 248 . Electromagnetic 196 | . . . 66 53 . 77 . Impact . | . . . . . . . . Slashing . | . . . . . . . . Piercing . | . . . . . . . . Highest Corruption . | . . . . . . . . Average Corruption . | . . . . . . . . Corruption Purged . | . . . . . . . . Overload Shots . | . . . . . . . . Overflow Damage 25 | . . . . 25 . . . Projectiles . | . . . . . . . . Explosions 25 | . . . . 25 . . . Melee . | . . . . . . . . Knockbacks . | . . . . . . . . Impact . | . . . . . . . . Kinetic . | . . . . . . . . Secondary . | . . . . . . . . Self-Inflicted Damage 82 | . . . . 61 . 21 . Shots 4 | . . . . 2 . 2 . Rammed . | . . . . . . . . Targets Rammed . | . . . . . . . . Kicked . | . . . . . . . . Crushed . | . . . . . . . . Highest Temperature 342 | . 8 4 342 24 . . . Average Temperature 58 | . 2 1 71 12 . . . Received Heat Transfer 657 | . 363 57 159 78 . . . Siege Activations . | . . . . . . . . Robots Corrupted . | . . . . . . . . Combat Hostiles . | . . . . . . . . Parts Fried . | . . . . . . . . Impact Corruptions . | . . . . . . . . Robots Melted . | . . . . . . . . Combat Hostiles . | . . . . . . . . Parts Melted 1 | . . . 1 . . . . Heat Transferred 198 | . . . 148 50 . . . Parts Sabotaged . | . . . . . . . . Parts Stolen . | . . . . . . . . Parts Stripped . | . . . . . . . . Power Chain Reactions . | . . . . . . . . Missiles Intercepted . | . . . . . . . . Alert | -11 -10 -10 -9 -9 -9 -8 -8 ------- Run | Scr Mat Min Mat Min Exi Min Mat Peak Influence 336 | . 207 151 336 150 . 171 . Initial 14 | . . 5 14 10 . . . Average 67 | . 96 64 126 28 . 65 . Maximum Alert Level 1 | . 1 . 1 . . . . Low Security (%) 94 | 100 80 100 85 100 . 100 100 Level 1 5 | . 19 . 14 . . . . Level 2 . | . . . . . . . . Level 3 . | . . . . . . . . Level 4 . | . . . . . . . . Level 5 . | . . . . . . . . High Security . | . . . . . . . . Max Security . | . . . . . . . . Squads Dispatched 12 | . 7 . 5 . . . . Investigation 5 | . 3 . 2 . . . . Extermination . | . . . . . . . . Reinforcement 7 | . 4 . 3 . . . . Assault . | . . . . . . . . Garrison . | . . . . . . . . Intercept . | . . . . . . . . Construction Impeded . | . . . . . . . . Haulers Reinforced . | . . . . . . . . Stealth | -11 -10 -10 -9 -9 -9 -8 -8 --------- Run | Scr Mat Min Mat Min Exi Min Mat Distress Signals 4 | . 3 . . 1 . . . Communications Jammed . | . . . . . . . . Distress Signals . | . . . . . . . . Times Spotted 81 | . 27 10 24 14 . 6 . Peak Tracking Total 5 | . 5 3 5 5 . 4 . Tactical Retreats 3 | . 2 . 1 . . . . Traps | -11 -10 -10 -9 -9 -9 -8 -8 ------- Run | Scr Mat Min Mat Min Exi Min Mat Traps Triggered 2 | . 2 . . . . . . Indirectly . | . . . . . . . . Trap Hack Attempts . | . . . . . . . . Triggered . | . . . . . . . . Disarmed . | . . . . . . . . Reprogrammed . | . . . . . . . . Reused . | . . . . . . . . Traps Extracted . | . . . . . . . . Installed . | . . . . . . . . Triggered . | . . . . . . . . Machines | -11 -10 -10 -9 -9 -9 -8 -8 ---------- Run | Scr Mat Min Mat Min Exi Min Mat Machines Disabled 1 | . . . . 1 . . . Max in Single Turn 1 | . . . . 1 . . . Machines Sabotaged . | . . . . . . . . Garrisons Compromised . | . . . . . . . . Overloaded Fab Kills . | . . . . . . . . Fab Network Shutdowns . | . . . . . . . . Hacking | -11 -10 -10 -9 -9 -9 -8 -8 --------- Run | Scr Mat Min Mat Min Exi Min Mat Machines Accessed 12 | . 3 . 7 . 2 . . Terminals 7 | . 2 . 5 . . . . Fabricators . | . . . . . . . . Repair Stations . | . . . . . . . . Recycling Units 1 | . 1 . . . . . . Scanalyzers 2 | . . . 2 . . . . Garrison Access . | . . . . . . . . Total Hacks 34 | . 13 . 19 . 2 . . Successful 20 | . 7 . 11 . 2 . . Failed 14 | . 6 . 8 . . . . Catastrophic . | . . . . . . . . Database Lockouts . | . . . . . . . . Manual 18 | . 6 . 11 . 1 . . Terminals 26 | . 11 . 15 . . . . Fabricators . | . . . . . . . . Repair Stations . | . . . . . . . . Recycling Units 2 | . 2 . . . . . . Scanalyzers 4 | . . . 4 . . . . Garrison Access . | . . . . . . . . Terminal Hacks 11 | . 4 . 5 . 2 . . Record 1 | . . . . . 1 . . Robot Analysis 1 | . . . 1 . . . . Unreport Threat 3 | . 2 . 1 . . . . Locate Traps 2 | . 1 . 1 . . . . Recall Investigation 1 | . 1 . . . . . . Hauler Manifests 1 | . . . 1 . . . . Zone Layout 1 | . . . 1 . . . . EX-Prototype ID Bank 1 | . . . . . 1 . . Fabricator Hacks . | . . . . . . . . Repair Station Hacks . | . . . . . . . . Recycling Unit Hacks . | . . . . . . . . Scanalyzer 3 | . . . 3 . . . . Insert Component 2 | . . . 2 . . . . Analyze 1 | . . . 1 . . . . Garrison Access Hacks . | . . . . . . . . Unauthorized Hacks 6 | . 3 . 3 . . . . Terminals 5 | . 2 . 3 . . . . Track 5 | . 2 . 3 . . . . Fabricators . | . . . . . . . . Repair Stations . | . . . . . . . . Recycling Units 1 | . 1 . . . . . . Tunnel 1 | . 1 . . . . . . Scanalyzers . | . . . . . . . . Garrison Access . | . . . . . . . . Data Cores Recovered . | . . . . . . . . Used . | . . . . . . . . Hacking Detections 8 | . 2 . 6 . . . . Full Trace Events . | . . . . . . . . Feedback Events . | . . . . . . . . Feedback Blocked . | . . . . . . . . Robot Schematics Acquired . | . . . . . . . . Robots Built . | . . . . . . . . Matter . | . . . . . . . . Time . | . . . . . . . . Total Robot Build Rating . | . . . . . . . . Part Schematics Acquired 1 | . . . 1 . . . . Parts Built . | . . . . . . . . Matter . | . . . . . . . . Time . | . . . . . . . . Total Part Build Rating . | . . . . . . . . Parts Repaired . | . . . . . . . . Time . | . . . . . . . . Parts Recycled . | . . . . . . . . Recycled Matter . | . . . . . . . . Retrieved Matter . | . . . . . . . . Retrieved Components . | . . . . . . . . Parts Scanalyzed 1 | . . . 1 . . . . Part Schematics Acquired 1 | . . . 1 . . . . Parts Damaged . | . . . . . . . . Bothacking | -11 -10 -10 -9 -9 -9 -8 -8 ------------ Run | Scr Mat Min Mat Min Exi Min Mat Used RIF Installer . | . . . . . . . . Robots Hacked . | . . . . . . . . Non-combat . | . . . . . . . . Combat . | . . . . . . . . Robot Hacks Applied . | . . . . . . . . Relay Couplers Released . | . . . . . . . . Robots Rewired . | . . . . . . . . Allies Hacked . | . . . . . . . . Hacks Repelled . | . . . . . . . . Allies | -11 -10 -10 -9 -9 -9 -8 -8 -------- Run | Scr Mat Min Mat Min Exi Min Mat Total Allies 5 | . . 4 . 1 . . . Largest Group 4 | . . 4 4 1 . . . Highest-Rated Group 71 | . . 71 71 31 . . . Highest-Rated Ally 31 | . . 31 31 31 . . . Total Orders 6 | . . . . . 4 1 1 ROAM 1 | . . . . . 1 . . EXPLORE 3 | . . . . . 1 1 1 RETURN 2 | . . . . . 2 . . Ally Attacks 32 | . . 13 19 . . . . Total Damage 418 | . . 168 250 . . . . Kills 10 | . . 5 5 . . . . Allies Corrupted . | . . . . . . . . Allies Melted . | . . . . . . . . Intel | -11 -10 -10 -9 -9 -9 -8 -8 ------- Run | Scr Mat Min Mat Min Exi Min Mat Robot Analysis Total 1 | . . . 1 . . . . Derelict Logs Recovered 2 | . . 1 . 1 . . . Drone Launches 4 | . . . . . 2 1 1 Drone Recoveries 3 | . . . . . 2 1 . Exploration | -11 -10 -10 -9 -9 -9 -8 -8 ------------- Run | Scr Mat Min Mat Min Exi Min Mat Turns Passed 7664 | 70 1025 1232 1268 2408 742 899 20 Spaces Moved 3839 | 41 412 651 635 1268 379 452 1 Core 7 | 7 . . . . . . . Treads 2509 | 34 252 . 123 1268 379 452 1 Legs 1323 | . 160 651 512 . . . . Wheels . | . . . . . . . . Hover . | . . . . . . . . Flight . | . . . . . . . . Fastest Speed 50 | 50 160 180 150 180 180 180 160 Average Speed 175 | 141 168 180 164 180 180 180 160 Slowest Speed 200 | 160 200 180 200 180 180 180 160 Overloaded Moves . | . . . . . . . . Propulsion Burnouts . | . . . . . . . . Robots Hopped . | . . . . . . . . Cave-ins Triggered . | . . . . . . . . Exploration Rate (%) 69 | 3 64 99 51 99 93 92 58 Regions Visited 7 Branch Regions 4 Pre-discovered Areas 3 | . 1 . . 1 1 . . Known Exits Taken . | . . . . . . . . Unknown Exits Taken 7 | 1 1 1 1 1 1 1 . Scrap Searched 6 | . . 2 . 3 . 1 . Spaces Dug . | . . . . . . . . Terrain Destroyed 108 | . . 25 7 51 . 25 . Melee . | . . . . . . . . Projectile . | . . . . . . . . AOE 108 | . . 25 7 51 . 25 . Terrain Rammed . | . . . . . . . . Walls Destroyed . | . . . . . . . . Machines Disabled . | . . . . . . . . Actions | -11 -10 -10 -9 -9 -9 -8 -8 --------- Run | Scr Mat Min Mat Min Exi Min Mat Total 4465 | 50 620 680 781 1361 439 515 19 Wait 344 | . 128 9 26 70 52 44 15 Move 3832 | 40 411 650 634 1267 378 451 1 Hop . | . . . . . . . . Pick Up 37 | 4 5 2 23 1 1 1 . Fast Attach 22 | 6 2 . 11 . 3 . . Attach 9 | . 3 . 3 . . 1 2 Detach 7 | . 2 . 4 . . . 1 Swap 30 | . 1 4 9 7 1 8 . Drop 38 | . 4 . 29 1 4 . . Fire 146 | . 64 15 42 15 . 10 . Melee . | . . . . . . . . Ram . | . . . . . . . . Kick . | . . . . . . . . Crush . | . . . . . . . . Escape Stasis . | . . . . . . . . Rewire . | . . . . . . . . Trap . | . . . . . . . . Miscellaneous . | . . . . . . . . Route ------- -11/Scrapyard -10/Materials (discovered 2 exits: *Mat / [*Min]) -10/Mines (discovered 2 exits: *Mat x2) -9/Materials (discovered 4 exits: [*Mat x2] / [*Min x2]) -9/Mines (discovered 3 exits: [*Mat x2] / *Exi) -9/Exiles (discovered 2 exits: [*Min x2]) -8/Mines -8/Materials (discovered 1 exit: [*Fac]) History --------- Turn | Location | Event 13 | -11/Scrapyard | Discovered new exit (range 14) 71 | -11/Scrapyard | Entered Materials 300 | -10/Materials | Build established: Mutant 480 | -10/Materials | Core integrity fell below 50% 504 | -10/Materials | Discovered new exit (range 8) 824 | -10/Materials | Discovered new exit (range 9) 1096 | -10/Materials | Entered Mines 1116 | -10/Mines | Discovered new exit (range 10) 1206 | -10/Mines | Discovered new exit (range 12) 1289 | -10/Mines | Core integrity fell below 20% 1370 | -10/Mines | Learned Materials emergency access door positions 1606 | -10/Mines | Assisted by bots powering up and referring to "LRC-V3" 1803 | -10/Mines | Escorted by a lone wolf Derelict 2328 | -10/Mines | Entered Materials 2328 | -9/Materials | Accompanied by 4 allies 2328 | -9/Materials | Evolved 2 slots: Utility x1, Weapon x1 2763 | -9/Materials | Build established: Tank 2936 | -9/Materials | Discovered new exit (range 7) 3093 | -9/Materials | Discovered new exit (range 11) 3202 | -9/Materials | Discovered new exit (range 7) 3365 | -9/Materials | Discovered new exit (range 9) 3536 | -9/Materials | Build established: Gunner 3596 | -9/Materials | Entered Mines 3628 | -9/Mines | Received a Mining Laser from a helpful Derelict 3661 | -9/Mines | Learned location of Zion (-6) 3740 | -9/Mines | YI-UF0 nonchalantly dropped a Grenade Launcher on the ground 4042 | -9/Mines | Excavation squad dispatched 4042 | -9/Mines | A large section of the Mines collapsed 4166 | -9/Mines | Deemed a non-threat by the Exiles lab entrance 4292 | -9/Mines | Excavation squad dispatched 4517 | -9/Mines | Discovered new exit (range 5) 4634 | -9/Mines | Discovered new exit (range 4) 5997 | -9/Mines | Discovered new exit (range 5) 6004 | -9/Mines | Entered Exiles 6028 | -9/Exiles | Discovered new exit (range 15) 6053 | -9/Exiles | Met 8R-AWN 6080 | -9/Exiles | Met EX-HEX 6148 | -9/Exiles | Met EX-DEC 6357 | -9/Exiles | Met EX-BIN 6418 | -9/Exiles | Aligned with FarCom system 6420 | -9/Exiles | Given EX-Vault access code 6469 | -9/Exiles | Opened EX-Vault 6480 | -9/Exiles | Found Supersonic Drone Bay 6497 | -9/Exiles | Discovered new exit (range 57) 6611 | -9/Exiles | Warned to stay clear of 0b10 Research branches 6746 | -9/Exiles | Left Exiles lab with Supersonic Drone Bay 6746 | -9/Exiles | Entered Mines 6777 | -8/Mines | Discovered new exit (range 20) 7216 | -8/Mines | Build established: Skirmisher 7645 | -8/Mines | Entered Materials 7645 | -8/Materials | Evolved 2 slots: Propulsion x1, Utility x1 7655 | -8/Materials | Discovered new exit (range 79) 7665 | -8/Materials | Self-destructed Last Messages --------------- 07154_ Penetrated by Slug. 07167_ Slug penetrates Wall. 07173_ Penetrated by Slug. 07176_ EM Pulse Cannon destroyed. 07179_ Penetrated by Slug. 07181_ H-55 Commando destroyed. 07186_ Acquired 32 matter. 07189_ Acquired Carbon-fiber Leg. 07192_ K-01 Serf collects debris. 07243_ U-05 Engineer lays Concrete. 07293_ Acquired 8 matter. 07482_ K-01 Serf collects debris. PARAMETERS=PROPULSION_1,UTILITY_1 LOCATION=UNKNOWN GOAL=ESCAPE 07645_ Receiving FarCom transmissions... 07648_ Trailblazer released from Supersonic Drone Bay. 07655_ EXIT=FOUND 07661_ K-01 Serf collects debris. 07662_ Trailblazer destroyed. Map ----- +----------------------------------------------------+ | | | | | | | | | | | | | | | | | | | | | | | | | | | | | | | | | | | ?????????????????????????????????????????????????? | | ?????????????????????????????????????????????????? | | ????????????????########?????????????????????????? | | ????????????????# #?????????????????????????? | | ????????????????# """ #?????????????????????????? | | ????????????????# "T" #####?????????????????????? | | ????????????????# # #?????????????????????? | | ????????????????# # #?????????????????????? | | ????#######?????# # @ #?????????????????????? | | ????# ##########+### ###+####??????????????? | | ????# #??????????????? | | ????# +??????????????? | | ????# #??????????????? | | ????# ## #######+##### #??????????????? | | ###### ### #????????????? #??????????????? | | / # #?#//!!!!#?????????????? #??????????????? | | # #?#//!!!!#???????????????+??????????????? | | """ + #?########??????????????????????????????? | | """ # #???????????????????????????????????????? | | """ # ###########?????????????????????????????? | | # # #?????????????????????????????? | | ###### # #?????????????????????????????? | | ###### # #?????????????????????????????? | | # """ """ #?????????????????????????????? | | + """ """ #?????????????????????????????? | | # """ """ #?????????????????????????????? | | ###### # #?????????????????????????????? | | ?????# # #?????????????????????????????? | | ?????# #############???????????????????????????? | | ?????# ## # #???????????????????????????? | | ?????# ## # #???????????????????????????? | | ?????# ## """# #???????????????????????????? | | ?????# ## ! """# #???????????????????????????? | +----------------------------------------------------+ Best States ------------- Heat Dissipation 45 Energy Generation 14 Energy Capacity 280 Matter Stores 300 Matter Capacity 300 Sight Range 16 Terrain Scan Density 10 Armor Coverage 150 Evasion (%) 40 Recoil Reduction 3 Item Schematics ----------------- Lrg. Storage Unit | -9/Materials | Scanalyzed Robot Schematics ------------------ None Fabricated ------------ Nothing Alien Tech Used ----------------- None Achievements -------------- None Challenges ------------ None Game ------ Seed ScatterTransportUnit Manual? 0 Play Time 00:40:54 Cumulative 85.9 hours Start 2020.10.15 @ 23:27:55 End 2020.10.16 @ 00:09:35 Sessions 1 Manual Loads 0 Difficulty Rogue Special Mode None Game No. 71 Rogue 71 Adventurer 0 Explorer 0 Win Type - Total 0 Types 0/0/0/0/0/0/0/0/0 Lore% 51 Gallery% 59 Achievement% 46 Wizard Run 0 Options --------- ASCII 0 Keyboard 1 Movement Numpad Keybinds 0 Fullscreen 1 Font 12/Smallcaps Map View 83x54 Tactical HUD 1 Map Filters NONE Filters NONE Steam 1 RUN: 8edcfc71-a1af-4169-9f9e-7699134648b7